fUSD/lending_fUSD_20250519
["ID","MTS","AMOUNT","RATE_DAILY","PERIOD"]
[361631007,1747653048257,-3063.32,0.00013698,2]
[361631008,1747653048268,-420.0,0.00013698,2]
[361631009,1747653048277,-420.0,0.00013698,2]
[361631010,1747653048287,-1471.02,0.00013698,2]
[361631011,1747653048296,-1872.99,0.00013698,2]
[361631012,1747653048306,-549.09175762,0.00013698,2]
[361631013,1747653048315,-420.0,0.00013698,2]
[361631014,1747653048325,-304.74421768,0.00013698,2]
[361631015,1747653048335,-420.0,0.00013698,2]
[361631016,1747653048345,-400.0,0.00013698,2]
[361631017,1747653048355,-420.0,0.00013698,2]
[361631018,1747653048364,-420.0,0.00013698,2]
[361631019,1747653048374,-1371.89,0.00013698,2]
[361631020,1747653048383,-151.0,0.00013698,2]
[361631021,1747653048393,-344.8975038,0.00013698,2]
[361631022,1747653048403,-420.0,0.00013698,2]
[361631023,1747653048412,-544.01,0.00013698,2]
[361631024,1747653048422,-420.0,0.00013698,2]
[361631025,1747653048432,-403.58703708,0.00013698,2]
[361631026,1747653048443,-400.0,0.00013698,2]
[361631027,1747653048454,-573.94,0.00013698,2]
[361631028,1747653048464,-400.0,0.00013698,2]
[361631029,1747653048474,-866.91,0.00013698,2]
[361631030,1747653048484,-400.0,0.00013698,2]
[361631031,1747653048494,-2319.68,0.00013698,2]
[361631032,1747653048505,-689.5,0.00013698,2]
[361631033,1747653048514,-768.51,0.00013698,2]
[361631034,1747653048524,-400.604644,0.00013698,2]
[361631035,1747653048533,-420.0,0.00013698,2]
[361631036,1747653048543,-1019.78,0.00013698,2]
[361631037,1747653048552,-420.0,0.00013698,2]
[361631038,1747653048562,-2077.12,0.00013698,2]
[361631039,1747653048572,-420.0,0.00013698,2]
[361631040,1747653048582,-2407.22,0.00013698,2]
[361631041,1747653048591,-420.0,0.00013698,2]
[361631042,1747653048600,-2009.66,0.00013698,2]
[361631043,1747653048610,-598.54,0.00013698,2]
[361631044,1747653048620,-420.0,0.00013698,2]
[361631045,1747653048630,-420.0,0.00013698,2]
[361631046,1747653048639,-705.13,0.00013698,2]
[361631047,1747653048649,-151.0,0.00013698,2]
[361631048,1747653048659,-151.0,0.00013698,2]
[361631049,1747653048669,-420.0,0.00013698,2]
[361631050,1747653048678,-1095.82,0.00013698,2]
[361631051,1747653048688,-3067.25,0.00013698,2]
[361631052,1747653048697,-420.0,0.00013698,2]
[361631053,1747653048707,-5105.072909,0.00013698,2]
[361631054,1747653048718,-5105.072909,0.00013698,2]
[361631055,1747653048728,-2011.31,0.00013698,2]
[361631056,1747653048737,-420.0,0.00013698,2]
[361631057,1747653048747,-151.0,0.00013698,2]
[361631058,1747653048757,-151.0,0.00013698,2]
[361631059,1747653048766,-500.0,0.00013698,2]
[361631060,1747653048778,-489.0,0.00013698,2]
[361631061,1747653048788,-500.0,0.00013698,2]
[361631062,1747653048798,-500.0,0.00013698,2]
[361631063,1747653048807,-1301.56,0.00013698,2]
[361631064,1747653048818,-5105.072909,0.00013698,2]
[361631065,1747653048828,-420.0,0.00013698,2]
[361631066,1747653048838,-5105.072909,0.00013698,2]
[361631067,1747653048848,-819.19,0.00013698,2]
[361631068,1747653048859,-400.0,0.00013698,2]
[361631069,1747653048868,-2104.44,0.00013698,2]
[361631070,1747653048878,-553.99,0.00013698,2]
[361631071,1747653048888,-420.0,0.00013698,2]
[361631072,1747653048898,-420.0,0.00013698,2]
[361631073,1747653048908,-606.57,0.00013698,2]
[361631074,1747653048918,-9623.8,0.00013698,2]
[361631075,1747653048927,-420.0,0.00013698,2]
[361631076,1747653048937,-606.4,0.00013698,2]
[361631077,1747653048946,-540.55,0.00013698,2]
[361631078,1747653048956,-1869.5,0.00013698,2]
[361631079,1747653048967,-1736.15,0.00013698,2]
[361631080,1747653048977,-151.0,0.00013698,2]
[361631081,1747653048986,-420.0,0.00013698,2]
[361631082,1747653048996,-420.0,0.00013698,2]
[361631083,1747653049006,-262.214402,0.00013698,2]
[361631084,1747653049015,-420.0,0.00013698,2]
[361631085,1747653049024,-1620.32,0.00013698,2]
[361631086,1747653049034,-495.53,0.00013698,2]
[361631087,1747653049044,-968.81,0.00013698,2]
[361631088,1747653049053,-1358.068877,0.00013698,2]
[361631089,1747653049062,-420.0,0.00013698,2]
[361631090,1747653049072,-515.39,0.00013698,2]
[361631091,1747653049082,-1480.91,0.00013698,2]
[361631092,1747653049091,-1481.21,0.00013698,2]
[361631093,1747653049101,-504.78,0.00013698,2]
[361631094,1747653049112,-423.9,0.00013698,2]
[361631095,1747653049121,-420.0,0.00013698,2]
[361631096,1747653049130,-420.0,0.00013698,2]
[361631097,1747653049140,-420.0,0.00013698,2]
[361631098,1747653049149,-493.2,0.00013698,2]
[361631099,1747653049158,-4034.76,0.00013698,2]
[361631100,1747653049168,-420.0,0.00013698,2]
[361631101,1747653049178,-569.61,0.00013698,2]
[361631102,1747653049187,-701.62,0.00013698,2]
[361631103,1747653049196,-420.0,0.00013698,2]
[361631104,1747653049206,-1163.28,0.00013698,2]
[361631105,1747653049215,-1781.33,0.00013698,2]
[361631106,1747653049225,-420.0,0.00013698,2]
[361631107,1747653049234,-420.0,0.00013698,2]
[361631108,1747653049244,-420.0,0.00013698,2]
[361631109,1747653049254,-380.0,0.00013698,2]
[361631110,1747653049263,-1621.09,0.00013698,2]
[361631111,1747653049273,-420.0,0.00013698,2]
[361631112,1747653049282,-8382.91,0.00013698,2]
[361631113,1747653049291,-420.0,0.00013698,2]
[361631114,1747653049300,-420.0,0.00013698,2]
[361631115,1747653049310,-400.81584776,0.00013698,2]
[361631116,1747653049319,-420.0,0.00013698,2]
[361631117,1747653049329,-420.0,0.00013698,2]
[361631118,1747653049338,-883.6,0.00013698,2]
[361631119,1747653049348,-830.39,0.00013698,2]
[361631120,1747653049358,-1317.96,0.00013698,2]
[361631121,1747653049367,-420.0,0.00013698,2]
[361631122,1747653049377,-380.0,0.00013698,2]
[361631123,1747653049386,-874.64,0.00013698,2]
[361631124,1747653049395,-1690.14,0.00013698,2]
[361631125,1747653049405,-420.0,0.00013698,2]
[361631126,1747653049415,-420.0,0.00013698,2]
[361631127,1747653049424,-420.0,0.00013698,2]
[361631128,1747653049433,-420.0,0.00013698,2]
[361631129,1747653049443,-518.18,0.00013698,2]
[361631130,1747653049454,-663.74,0.00013698,2]
[361631131,1747653049463,-3371.05905231,0.00013698,2]
[361631132,1747653050466,-456.44,0.00012729,2]
[361631133,1747653050475,-898.26249504,0.00013698,2]
[361631134,1747653050486,-2264.89845265,0.00013698,2]
[361631135,1747653050496,-1105.66,0.00013698,2]
[361631136,1747653050505,-17.59772906,0.00013698,2]
[361631137,1747653050602,-402.40227094,0.00013698,2]
[361631138,1747653050611,-6447.22,0.00013698,2]
[361631139,1747653050620,-803.89,0.00013698,2]
[361631140,1747653050630,-6179.3,0.00013698,2]
[361631141,1747653050639,-981.07,0.00013698,2]
[361631142,1747653050649,-1227.48,0.00013698,2]
[361631143,1747653050658,-485.16,0.00013698,2]
[361631144,1747653050667,-1811.63,0.00013698,2]
[361631145,1747653050677,-420.0,0.00013698,2]
[361631146,1747653050686,-380.0,0.00013698,2]
[361631147,1747653050695,-420.0,0.00013698,2]
[361631148,1747653050704,-500.0,0.00013698,2]
[361631149,1747653050713,-403.28142654,0.00013698,2]
[361631150,1747653050723,-500.0,0.00013698,2]
[361631151,1747653050732,-500.0,0.00013698,2]
[361631152,1747653050741,-420.0,0.00013698,2]
[361631153,1747653050750,-3283.47,0.00013698,2]
[361631154,1747653050759,-420.0,0.00013698,2]
[361631155,1747653050768,-580.22,0.00013698,2]
[361631156,1747653050781,-882.71,0.00013698,2]
[361631157,1747653050790,-752.7,0.00013698,2]
[361631158,1747653050799,-420.0,0.00013698,2]
[361631159,1747653050808,-400.0,0.00013698,2]
[361631160,1747653050818,-420.0,0.00013698,2]
[361631161,1747653050826,-420.0,0.00013698,2]
[361631162,1747653050836,-3741.85,0.00013698,2]
[361631163,1747653050845,-420.0,0.00013698,2]
[361631164,1747653050854,-420.0,0.00013698,2]
[361631165,1747653050864,-685.14,0.00013698,2]
[361631166,1747653050873,-420.0,0.00013698,2]
[361631167,1747653050883,-420.0,0.00013698,2]
[361631168,1747653050891,-1299.21,0.00013698,2]
[361631169,1747653050901,-510.44,0.00013698,2]
[361631170,1747653050910,-1154.11,0.00013698,2]
[361631171,1747653050919,-938.08,0.00013698,2]
[361631172,1747653050928,-420.0,0.00013698,2]
[361631173,1747653050938,-420.0,0.00013698,2]
[361631174,1747653050949,-599.64,0.00013698,2]
[361631175,1747653050958,-420.0,0.00013698,2]
[361631176,1747653050968,-420.0,0.00013698,2]
[361631177,1747653050977,-420.0,0.00013698,2]
[361631178,1747653050986,-566.51,0.00013698,2]
[361631179,1747653050996,-151.0,0.00013698,2]
[361631180,1747653051006,-905.73,0.00013698,2]
[361631181,1747653051015,-151.0,0.00013698,2]
[361631182,1747653051024,-625.79,0.00013698,2]
[361631183,1747653051034,-420.0,0.00013698,2]
[361631184,1747653051043,-560.32,0.00013698,2]
[361631185,1747653051053,-420.0,0.00013698,2]
[361631186,1747653051062,-6914.49,0.00013698,2]
[361631187,1747653051072,-524.83809563,0.00013698,2]
[361631188,1747653051081,-400.0,0.00013698,2]
[361631189,1747653051090,-622.95,0.00013698,2]
[361631190,1747653051099,-664.15,0.00013698,2]
[361631191,1747653051108,-5101.37370906,0.00013698,2]
[361631192,1747653051924,-164.59600689,0.0001368,2]
[361631193,1747653051934,-368.84346291,0.00013698,2]
[361631194,1747653051950,-343.68943434,0.00013698,2]
[361631195,1747653051979,-3522.61026685,0.00013698,2]
[361631196,1747653051991,-1624.60049396,0.00013698,2]
[361631197,1747653182076,-187.33472814,0.00012695,2]
[361631198,1747653194589,500.0,0.00025278,120]
[361631199,1747653201358,500.0,0.00025278,120]
[361631200,1747653711489,1671.96856548,0.00012635,5]
[361631202,1747653977131,784.73,0.0001054,2]
[361631205,1747654056801,-224.9289075,0.00011623,2]
[361631206,1747654059730,-270.98,0.00011623,2]
[361631207,1747654061939,-200.0,0.00011623,2]
[361631208,1747654064013,-171.67624742,0.00011623,2]
[361631209,1747654065540,-132.41484508,0.00011623,2]
[361631210,1747654116705,-218.59695874,0.00011426,2]
[361631211,1747654116765,1000.0,0.00011108,2]
[361631212,1747654116904,1000.0,0.00011108,2]
[361631213,1747654119997,-162.05176874,0.00011426,2]
[361631215,1747654122837,-232.91323714,0.00011426,2]
[361631217,1747654125009,-210.24231611,0.00011426,2]
[361631218,1747654126655,-176.19571927,0.00011426,2]
[361631219,1747654126681,-19.14565518,0.00011658,2]
[361631220,1747654128864,-236.29,0.00011658,2]
[361631221,1747654131305,-185.809355,0.00011658,2]
[361631222,1747654135003,-215.04115685,0.00011658,2]
[361631223,1747654137447,-164.50902,0.00011658,2]
[361631224,1747654138885,-179.20481297,0.00011658,2]
[361631225,1747654138907,-227.20816999,0.00011853,2]
[361631226,1747654141126,-222.84953237,0.00011853,2]
[361631227,1747654143371,-266.44682209,0.00011853,2]
[361631228,1747654145172,-283.49547555,0.00011853,2]
[361631229,1747654145197,-14.33873995,0.00011858,2]
[361631230,1747654147040,-135.66126005,0.00011858,2]
[361631231,1747654147063,-95.90028487,0.0001194,2]
[361631232,1747654149896,-192.73622149,0.0001194,2]
[361631233,1747654152969,-170.55339718,0.0001194,2]
[361631234,1747654155511,-151.53640827,0.0001194,2]
[361631235,1747654157741,-295.20140833,0.0001194,2]
[361631236,1747654159308,-245.71468405,0.0001194,2]
[361631237,1747654161207,-178.69324188,0.0001194,2]
[361631238,1747654161313,-3228.45967393,0.0001194,2]
[361631239,1747654161334,-150.0,0.00011953,2]
[361631240,1747654161353,-57063.92759563,0.00012,2]
[361631241,1747654161374,-150.0,0.00012082,2]
[361631242,1747654161395,-1000.0,0.00012089,2]
[361631243,1747654161415,-2397.71,0.00012143,2]
[361631244,1747654161436,-150.0,0.00012157,2]
[361631245,1747654161457,-150.0,0.00012233,2]
[361631246,1747654161477,-290.0509301,0.00012272,2]
[361631258,1747654231377,-207.0,0.00012248,2]
[361631260,1747654231387,-97.92607101,0.00012272,2]
[361631262,1747654231487,-319.37023293,0.00012272,2]
[361631263,1747654231541,-292.65276596,0.00012272,2]
[361631264,1747654231550,-119.989374,0.0001228,2]
[361631298,1747654232035,-30.010626,0.0001228,2]
[361631300,1747654232044,-150.0,0.0001228,2]
[361631302,1747654232053,-150.0,0.00012302,2]
[361631304,1747654232062,-1000.0,0.00012352,2]
[361631306,1747654232071,-468.83060181,0.00012365,2]
[361631307,1747654232089,-531.16939819,0.00012365,2]
[361631309,1747654232098,-250.0,0.00012448,2]
[361631311,1747654232108,-150.0,0.00012456,2]
[361631313,1747654232117,-820.83,0.00012472,2]
[361631315,1747654232127,-1000.0,0.00012483,2]
[361631317,1747654232136,-883.87629145,0.00012502,2]
[361631319,1747654232147,-233.82370855,0.00012502,2]
[361631320,1747654232156,-997.20608645,0.00012524,2]
[361631322,1747654232178,-202.79391355,0.00012524,2]
[361631324,1747654232187,-1000.0,0.00012561,2]
[361631326,1747654232196,-300.0,0.00012573,2]
[361631328,1747654232205,-300.0,0.00012573,2]
[361631330,1747654232215,-1000.0,0.00012574,2]
[361631331,1747654232223,-150.0,0.00012587,2]
[361631332,1747654232232,-200.0,0.0001259,2]
[361631333,1747654232241,-4222.76814352,0.000126,2]
[361631334,1747654232249,-4000.0,0.0001263,2]
[361631335,1747654232259,-2751.0,0.00012636,2]
[361631336,1747654232268,-779.12012488,0.0001264,2]
[361631337,1747654232279,-220.87987512,0.0001264,2]
[361631338,1747654232288,-879.32,0.00012656,2]
[361631339,1747654232296,-150.0,0.00012671,2]
[361631340,1747654232305,-150.0,0.00012702,2]
[361631341,1747654232314,-269.34214983,0.00012706,2]
[361631342,1747654232322,-150.0,0.00012706,2]
[361631343,1747654232331,-1000.0,0.00012726,2]
[361631344,1747654232340,-55.77449164,0.0001276,2]
[361631345,1747654232351,-336.66692717,0.0001276,2]
[361631353,1747654232460,150.0,0.00012212,7]
[361631370,1747654237362,-3108.82622805,0.000123,2]
[361631371,1747654237373,-23507.55858119,0.0001276,2]
[361631372,1747654237383,-1000.0,0.0001276,2]
[361631373,1747654237393,-151.33064016,0.00012761,2]
[361631374,1747654237402,-200.0,0.00012767,2]
[361631375,1747654237413,-250.0,0.00012767,2]
[361631376,1747654237423,-784.73,0.00012804,2]
[361631377,1747654237433,-1000.0,0.00012842,2]
[361631378,1747654237443,-1000.0,0.00012847,2]
[361631379,1747654237453,-150.0,0.00012857,2]
[361631380,1747654237463,-150.0,0.00012937,2]
[361631381,1747654237472,-150.0,0.00012941,2]
[361631382,1747654237482,-168.03,0.00012974,2]
[361631383,1747654237494,-150.0,0.00012987,2]
[361631384,1747654237503,-195.97,0.00013,2]
[361631385,1747654237514,-195.97,0.00013,2]
[361631386,1747654237524,-195.97,0.00013,2]
[361631387,1747654237534,-195.97,0.00013,2]
[361631388,1747654237544,-195.97,0.00013,2]
[361631389,1747654237554,-255.7,0.00013,2]
[361631390,1747654237564,-255.7,0.00013,2]
[361631391,1747654237574,-255.7,0.00013,2]
[361631392,1747654237584,-255.7,0.00013,2]
[361631393,1747654237593,-255.7,0.00013,2]
[361631394,1747654237603,-150.0,0.00013036,2]
[361631395,1747654237613,-155.0,0.00013061,2]
[361631396,1747654237622,-151.0,0.00013061,2]
[361631397,1747654237632,-668.65185757,0.00013061,2]
[361631398,1747654237642,-668.65185757,0.00013061,2]
[361631399,1747654237651,-207.4,0.00013061,2]
[361631400,1747654237661,-250.79131466,0.00013061,2]
[361631401,1747654237671,-1199.20597015,0.00013061,2]
[361631402,1747654237681,-1624.20225934,0.00013106,2]
[361631403,1747654237690,-1000.0,0.00013149,2]
[361631404,1747654237700,-1000.0,0.00013157,2]
[361631405,1747654237709,-150.0,0.00013194,2]
[361631406,1747654237718,-250.0,0.00013234,2]
[361631407,1747654237728,-150.0,0.00013243,2]
[361631408,1747654237739,-150.0,0.00013248,2]
[361631409,1747654237749,-150.0,0.00013284,2]
[361631410,1747654237759,-1000.0,0.0001331,2]
[361631411,1747654237769,-1000.0,0.00013338,2]
[361631412,1747654237779,-488.8324732,0.000135,2]
[361631413,1747654237788,-1000.0,0.00013507,2]
[361631414,1747654237798,-864.76119748,0.0001351,2]
[361631415,1747654237807,-1000.0,0.00013525,2]
[361631416,1747654237816,-324.3079289,0.00013531,2]
[361631417,1747654237826,-1000.0,0.00013533,2]
[361631418,1747654237836,-500.0,0.0001355,2]
[361631419,1747654237846,-1000.0,0.00013586,2]
[361631420,1747654237856,-150.0,0.00013596,2]
[361631421,1747654237865,-745.2014,0.00013598,2]
[361631422,1747654237875,-223.8383628,0.00013598,2]
[361631423,1747654237884,-170.36300023,0.00013598,2]
[361631424,1747654237893,-329.19201378,0.00013598,2]
[361631425,1747654237903,-237.35912886,0.00013598,2]
[361631426,1747654237912,-150.0,0.00013599,2]
[361631427,1747654237922,-150.0,0.000136,2]
[361631428,1747654237932,-150.0,0.00013603,2]
[361631429,1747654237942,-150.0,0.00013608,2]
[361631430,1747654237951,-162.03590927,0.00013608,2]
[361631431,1747654237960,-150.0,0.00013609,2]
[361631432,1747654237970,-1000.0,0.00013609,2]
[361631433,1747654237981,-693.3919763,0.00013609,2]
[361631434,1747654237992,-234.68256595,0.00013611,2]
[361631435,1747654238002,-150.0,0.00013615,2]
[361631436,1747654238012,-1000.0,0.00013616,2]
[361631437,1747654238022,-1158.37,0.0001362,2]
[361631438,1747654238031,-150.0,0.00013625,2]
[361631439,1747654238040,-1000.0,0.00013627,2]
[361631440,1747654238050,-237.3591288,0.00013632,2]
[361631441,1747654238059,-1000.0,0.00013633,2]
[361631442,1747654238070,-996.5,0.00013637,2]
[361631443,1747654238080,-150.0,0.00013638,2]
[361631444,1747654238089,-2000.0,0.00013638,2]
[361631445,1747654238098,-200.0,0.00013638,2]
[361631446,1747654238108,-1000.0,0.00013639,2]
[361631447,1747654238117,-150.0,0.00013639,2]
[361631448,1747654238126,-166.47,0.0001364,2]
[361631449,1747654238135,-150.0,0.00013641,2]
[361631450,1747654238145,-150.0,0.00013641,2]
[361631451,1747654238155,-150.0,0.00013646,2]
[361631452,1747654238164,-150.0,0.00013647,2]
[361631453,1747654238178,-223.83836276,0.00013648,2]
[361631454,1747654238188,-31461.55346649,0.0001365,2]
[361631455,1747654238200,-29114.59833013,0.0001365,2]
[361631456,1747654238234,-582.68101033,0.0001365,2]
[361631470,1747654239552,-996.5,0.0001363,2]
[361631471,1747654239561,-52142.49121844,0.0001365,2]
[361631472,1747654239571,-150.0,0.0001365,2]
[361631473,1747654239580,-150.0,0.00013652,2]
[361631474,1747654239590,-150.0,0.00013654,2]
[361631475,1747654239601,-150.0,0.00013657,2]
[361631476,1747654239611,-1000.0,0.00013658,2]
[361631477,1747654239620,-150.0,0.00013662,2]
[361631478,1747654239630,-150.0,0.00013662,2]
[361631479,1747654239640,-150.0,0.00013665,2]
[361631480,1747654239650,-150.0,0.00013665,2]
[361631481,1747654239661,-237.3591288,0.00013665,2]
[361631482,1747654239671,-150.0,0.00013668,2]
[361631483,1747654239681,-1000.0,0.00013672,2]
[361631484,1747654239691,-500.0,0.00013673,2]
[361631485,1747654239700,-500.0,0.00013673,2]
[361631486,1747654239710,-500.26014629,0.00013673,2]
[361631487,1747654239719,-500.0,0.00013673,2]
[361631488,1747654239728,-500.0,0.00013673,2]
[361631489,1747654239738,-500.0,0.00013673,2]
[361631490,1747654239747,-500.0,0.00013673,2]
[361631491,1747654239757,-609.17233242,0.00013673,2]
[361631492,1747654239766,-501.49882127,0.00013673,2]
[361631493,1747654239776,-500.0,0.00013673,2]
[361631494,1747654239787,-500.0,0.00013673,2]
[361631495,1747654239797,-150.0,0.00013677,2]
[361631496,1747654239807,-150.0,0.00013677,2]
[361631497,1747654239816,-150.0,0.00013678,2]
[361631498,1747654239826,-150.0,0.00013682,2]
[361631499,1747654239836,-150.0,0.00013682,2]
[361631500,1747654239845,-3381.5403533,0.00013687,2]
[361631501,1747654239855,-166.47,0.00013688,2]
[361631502,1747654239864,-166.47,0.00013688,2]
[361631503,1747654239874,-166.47,0.00013688,2]
[361631504,1747654239884,-20049.0592,0.00013688,2]
[361631505,1747654239893,-288.40986919,0.00013688,2]
[361631506,1747654239903,-1365.94,0.0001369,2]
[361631507,1747654239912,-150.0,0.0001369,2]
[361631508,1747654239922,-150.0,0.00013692,2]
[361631509,1747654239932,-150.0,0.00013694,2]
[361631511,1747654239941,-150.0,0.00013696,2]
[361631513,1747654239951,-587.047,0.00013697,2]
[361631514,1747654239960,-677.0,0.00013698,2]
[361631515,1747654239969,-255.09320368,0.00013698,2]
[361631516,1747654239978,-253168.43613147,0.00013698,2]
[361631517,1747654239988,-151.0,0.00013698,2]
[361631519,1747654239997,-151.0,0.00013698,2]
[361631521,1747654240007,-682.655542,0.00013698,2]
[361631523,1747654240016,-682.655542,0.00013698,2]
[361631525,1747654240025,-3017.411246,0.00013698,2]
[361631527,1747654240034,-1358.068877,0.00013698,2]
[361631529,1747654240044,-1074.952015,0.00013698,2]
[361631531,1747654240054,-420.0,0.00013698,2]
[361631533,1747654240064,-420.0,0.00013698,2]
[361631535,1747654240074,-400.0,0.00013698,2]
[361631537,1747654240084,-420.0,0.00013698,2]
[361631539,1747654240093,-420.0,0.00013698,2]
[361631541,1747654240102,-420.0,0.00013698,2]
[361631543,1747654240112,-420.0,0.00013698,2]
[361631545,1747654240121,-360.0,0.00013698,2]
[361631547,1747654240131,-420.0,0.00013698,2]
[361631549,1747654240140,-558.47923219,0.00013698,2]
[361631551,1747654240150,-420.0,0.00013698,2]
[361631553,1747654240160,-420.0,0.00013698,2]
[361631556,1747654240171,-401.9694287,0.00013698,2]
[361631558,1747654240184,-370.1201983,0.00013698,2]
[361631560,1747654240194,-420.0,0.00013698,2]
[361631562,1747654240204,-400.0,0.00013698,2]
[361631564,1747654240215,-387.1666385,0.00013698,2]
[361631565,1747654240224,-400.0,0.00013698,2]
[361631566,1747654240233,-420.0,0.00013698,2]
[361631567,1747654240243,-513.42,0.00013698,2]
[361631568,1747654240253,-420.0,0.00013698,2]
[361631569,1747654240263,-400.0,0.00013698,2]
[361631570,1747654240272,-420.0,0.00013698,2]
[361631571,1747654240281,-400.0,0.00013698,2]
[361631572,1747654240291,-420.0,0.00013698,2]
[361631573,1747654240300,-420.0,0.00013698,2]
[361631574,1747654240310,-420.0,0.00013698,2]
[361631575,1747654240319,-420.0,0.00013698,2]
[361631576,1747654240328,-420.0,0.00013698,2]
[361631577,1747654240337,-400.0,0.00013698,2]
[361631578,1747654240347,-366.88096896,0.00013698,2]
[361631579,1747654240356,-420.0,0.00013698,2]
[361631580,1747654240366,-400.0,0.00013698,2]
[361631581,1747654240375,-420.0,0.00013698,2]
[361631582,1747654240385,-400.0,0.00013698,2]
[361631583,1747654240396,-319.3559399,0.00013698,2]
[361631584,1747654240406,-250.0,0.00013698,2]
[361631585,1747654240415,-203.96365678,0.00013698,2]
[361631586,1747654240425,-340.0,0.00013698,2]
[361631587,1747654240435,-420.0,0.00013698,2]
[361631588,1747654240445,-699.53,0.00013698,2]
[361631589,1747654240454,-420.0,0.00013698,2]
[361631590,1747654240464,-405.15820895,0.00013698,2]
[361631591,1747654240474,-420.0,0.00013698,2]
[361631592,1747654240484,-420.0,0.00013698,2]
[361631593,1747654240494,-420.0,0.00013698,2]
[361631594,1747654240504,-420.0,0.00013698,2]
[361631595,1747654240514,-492.29080574,0.00013698,2]
[361631596,1747654240524,-420.0,0.00013698,2]
[361631597,1747654240533,-420.0,0.00013698,2]
[361631598,1747654240543,-420.0,0.00013698,2]
[361631599,1747654240552,-420.0,0.00013698,2]
[361631600,1747654240561,-400.0,0.00013698,2]
[361631601,1747654240571,-420.0,0.00013698,2]
[361631602,1747654240580,-400.0,0.00013698,2]
[361631603,1747654240590,-401.97023752,0.00013698,2]
[361631604,1747654240600,-400.0,0.00013698,2]
[361631605,1747654240609,-340.0,0.00013698,2]
[361631606,1747654240619,-420.0,0.00013698,2]
[361631607,1747654240628,-420.0,0.00013698,2]
[361631608,1747654240637,-400.0,0.00013698,2]
[361631609,1747654240647,-573.38327109,0.00013698,2]
[361631610,1747654240656,-400.0,0.00013698,2]
[361631611,1747654240665,-400.0,0.00013698,2]
[361631612,1747654240675,-420.0,0.00013698,2]
[361631613,1747654240685,-420.0,0.00013698,2]
[361631614,1747654240694,-400.0,0.00013698,2]
[361631615,1747654240703,-420.0,0.00013698,2]
[361631616,1747654240712,-420.0,0.00013698,2]
[361631617,1747654240722,-420.0,0.00013698,2]
[361631618,1747654240732,-420.0,0.00013698,2]
[361631619,1747654240741,-420.0,0.00013698,2]
[361631620,1747654240750,-240.0,0.00013698,2]
[361631621,1747654240759,-420.0,0.00013698,2]
[361631622,1747654240768,-420.0,0.00013698,2]
[361631623,1747654240778,-420.0,0.00013698,2]
[361631624,1747654240787,-420.0,0.00013698,2]
[361631625,1747654240796,-292.31855282,0.00013698,2]
[361631626,1747654240806,-420.0,0.00013698,2]
[361631627,1747654240815,-420.0,0.00013698,2]
[361631628,1747654240826,-420.0,0.00013698,2]
[361631629,1747654240835,-433.68,0.00013698,2]
[361631630,1747654240845,-420.0,0.00013698,2]
[361631631,1747654240855,-420.0,0.00013698,2]
[361631632,1747654240865,-401.74571758,0.00013698,2]
[361631633,1747654240874,-420.0,0.00013698,2]
[361631634,1747654240884,-420.0,0.00013698,2]